[Event "Titled Tuesday Blitz February 22 Early 2022"]
[White "Obolenskikh, Dmitry"]
[Black "Martins, Bruno Andre Leite"]
[WhiteFideId "4156013"]
[BlackFideId "1942255"]
[WhiteElo "2512"]
[BlackElo "2137"]
[Result "1-0"]
[Round "11"]
[TimeControl "180+1"]
[Date "2022.02.22"]
[WhiteClock "0:00:37"]
[BlackClock "0:00:24"]

1. e4 {[%clk 0:03:00]}  c6 {[%clk 0:02:42]} 2. d4 {[%clk 0:03:00]}  d5 {[%clk 0:02:43]} 3. Nc3 {[%clk 0:03:00]}  dxe4 {[%clk 0:02:42]} 4. Nxe4 {[%clk 0:03:01]}  Nf6 {[%clk 0:02:43]} 5. Nxf6+ {[%clk 0:03:02]}  exf6 {[%clk 0:02:43]} 6. c3 {[%clk 0:03:02]}  Bd6 {[%clk 0:02:44]} 7. Bd3 {[%clk 0:03:03]}  O-O {[%clk 0:02:45]} 8. Qc2 {[%clk 0:03:04]}  Re8+ {[%clk 0:02:45]} 9. Ne2 {[%clk 0:03:05]}  h5 {[%clk 0:02:45]} 10. O-O {[%clk 0:03:04]}  h4 {[%clk 0:02:43]} 11. h3 {[%clk 0:03:04]}  Nd7 {[%clk 0:02:42]} 12. Bd2 {[%clk 0:02:58]}  Nf8 {[%clk 0:02:40]} 13. Rfe1 {[%clk 0:02:58]}  Be6 {[%clk 0:02:39]} 14. Bf4 {[%clk 0:02:57]}  Qc7 {[%clk 0:02:37]} 15. Bxd6 {[%clk 0:02:56]}  Qxd6 {[%clk 0:02:38]} 16. Rad1 {[%clk 0:02:55]}  Rad8 {[%clk 0:02:36]} 17. b3 {[%clk 0:02:55]}  g6 {[%clk 0:02:23]} 18. c4 {[%clk 0:02:53]}  Kg7 {[%clk 0:02:21]} 19. Nc3 {[%clk 0:02:49]}  Qf4 {[%clk 0:02:09]} 20. Re4 {[%clk 0:02:44]}  Qg5 {[%clk 0:02:06]} 21. f4 {[%clk 0:01:56]}  Qa5 {[%clk 0:02:03]} 22. Kh1 {[%clk 0:01:41]}  f5 {[%clk 0:02:02]} 23. Re5 {[%clk 0:01:41]}  Qc7 {[%clk 0:01:45]} 24. d5 {[%clk 0:01:31]}  cxd5 {[%clk 0:01:38]} 25. cxd5 {[%clk 0:01:27]}  Bc8 {[%clk 0:01:28]} 26. Rxe8 {[%clk 0:01:25]}  Rxe8 {[%clk 0:01:27]} 27. Qb2 {[%clk 0:01:20]}  Kg8 {[%clk 0:01:23]} 28. Ne2 {[%clk 0:01:16]}  Rd8 {[%clk 0:01:17]} 29. Bc4 {[%clk 0:01:12]}  a6 {[%clk 0:01:12]} 30. a4 {[%clk 0:01:12]}  Qc5 {[%clk 0:01:08]} 31. Qd4 {[%clk 0:01:05]}  Qb4 {[%clk 0:00:57]} 32. d6 {[%clk 0:00:58]}  Be6 {[%clk 0:00:52]} 33. Bxe6 {[%clk 0:00:56]}  Qxd4 {[%clk 0:00:53]} 34. Bxf7+ {[%clk 0:00:55]}  Kxf7 {[%clk 0:00:54]} 35. Rxd4 {[%clk 0:00:55]}  Ke6 {[%clk 0:00:54]} 36. Rb4 {[%clk 0:00:54]}  Rd7 {[%clk 0:00:49]} 37. Rb6 {[%clk 0:00:53]}  Kd5 {[%clk 0:00:46]} 38. Kg1 {[%clk 0:00:47]}  Kc5 {[%clk 0:00:41]} 39. a5 {[%clk 0:00:46]}  Ne6 {[%clk 0:00:41]} 40. b4+ {[%clk 0:00:44]}  Kd5 {[%clk 0:00:37]} 41. Nc3+ {[%clk 0:00:44]}  Kc4 {[%clk 0:00:37]} 42. Na4 {[%clk 0:00:42]}  Kd5 {[%clk 0:00:26]} 43. Kf2 {[%clk 0:00:37]}  Rxd6 {[%clk 0:00:24]} 44. Nc3+ {[%clk 0:00:37]} 1-0


[Site "https://www.chess.com"]

[Event "Titled Tuesday Blitz February 22 Early 2022"]
[White "Oro, Luis"]
[Black "Pasti, Aron"]
[WhiteFideId "104094"]
[BlackFideId "785857"]
[WhiteElo "2270"]
[BlackElo "2080"]
[Result "1-0"]
[Round "11"]
[TimeControl "180+1"]
[Date "2022.02.22"]
[WhiteClock "0:00:12"]
[BlackClock "0:00:04"]

1. e4 {[%clk 0:03:00]}  e5 {[%clk 0:02:56]} 2. Nf3 {[%clk 0:03:00]}  Nc6 {[%clk 0:02:55]} 3. Bc4 {[%clk 0:03:00]}  Nf6 {[%clk 0:02:55]} 4. d3 {[%clk 0:02:59]}  Be7 {[%clk 0:02:54]} 5. c3 {[%clk 0:02:59]}  d5 {[%clk 0:02:51]} 6. exd5 {[%clk 0:02:58]}  Nxd5 {[%clk 0:02:52]} 7. O-O {[%clk 0:02:56]}  O-O {[%clk 0:02:52]} 8. Re1 {[%clk 0:02:56]}  Bf6 {[%clk 0:02:47]} 9. Qe2 {[%clk 0:02:39]}  Re8 {[%clk 0:02:43]} 10. Be3 {[%clk 0:02:34]}  Nxe3 {[%clk 0:02:38]} 11. fxe3 {[%clk 0:02:28]}  Bg4 {[%clk 0:02:36]} 12. Nbd2 {[%clk 0:02:17]}  a6 {[%clk 0:02:34]} 13. a4 {[%clk 0:02:14]}  Qd7 {[%clk 0:02:32]} 14. Ne4 {[%clk 0:02:12]}  Be7 {[%clk 0:02:27]} 15. Rf1 {[%clk 0:02:11]}  Rf8 {[%clk 0:02:15]} 16. d4 {[%clk 0:02:00]}  exd4 {[%clk 0:02:14]} 17. exd4 {[%clk 0:01:59]}  Rae8 {[%clk 0:02:07]} 18. Bd3 {[%clk 0:01:52]}  f5 {[%clk 0:01:59]} 19. Nf2 {[%clk 0:01:43]}  Bh5 {[%clk 0:01:51]} 20. Bc4+ {[%clk 0:01:38]}  Kh8 {[%clk 0:01:49]} 21. Nd3 {[%clk 0:01:35]}  Bg5 {[%clk 0:01:39]} 22. Qc2 {[%clk 0:01:26]}  Be3+ {[%clk 0:01:35]} 23. Kh1 {[%clk 0:01:25]}  Qd6 {[%clk 0:01:23]} 24. Rae1 {[%clk 0:01:20]}  Bh6 {[%clk 0:01:19]} 25. Nfe5 {[%clk 0:01:15]}  Nxe5 {[%clk 0:01:17]} 26. Nxe5 {[%clk 0:01:15]}  f4 {[%clk 0:01:08]} 27. Be2 {[%clk 0:01:04]}  Bg6 {[%clk 0:00:51]} 28. Bd3 {[%clk 0:00:52]}  Bxd3 {[%clk 0:00:50]} 29. Nf7+ {[%clk 0:00:33]}  Kg8 {[%clk 0:00:23]} 30. Nxd6 {[%clk 0:00:32]}  Rxe1 {[%clk 0:00:22]} 31. Qxd3 {[%clk 0:00:28]}  Rxf1+ {[%clk 0:00:22]} 32. Qxf1 {[%clk 0:00:29]}  cxd6 {[%clk 0:00:22]} 33. Qf3 {[%clk 0:00:26]}  Rf7 {[%clk 0:00:18]} 34. Kg1 {[%clk 0:00:25]}  Bg5 {[%clk 0:00:18]} 35. Kf1 {[%clk 0:00:24]}  Re7 {[%clk 0:00:13]} 36. Qd5+ {[%clk 0:00:24]}  Rf7 {[%clk 0:00:09]} 37. Qxg5 {[%clk 0:00:24]}  h6 {[%clk 0:00:09]} 38. Qd8+ {[%clk 0:00:24]}  Kh7 {[%clk 0:00:09]} 39. Qxd6 {[%clk 0:00:24]}  f3 {[%clk 0:00:09]} 40. g3 {[%clk 0:00:23]}  f2 {[%clk 0:00:09]} 41. Qd5 {[%clk 0:00:22]}  Kg6 {[%clk 0:00:09]} 42. Qe6+ {[%clk 0:00:22]}  Rf6 {[%clk 0:00:07]} 43. Qe4+ {[%clk 0:00:22]}  Kf7 {[%clk 0:00:07]} 44. Qxb7+ {[%clk 0:00:23]}  Kg6 {[%clk 0:00:07]} 45. b4 {[%clk 0:00:22]}  Kg5 {[%clk 0:00:04]} 46. Qe4 {[%clk 0:00:18]}  h5 {[%clk 0:00:03]} 47. Qe3+ {[%clk 0:00:16]}  Kg6 {[%clk 0:00:02]} 48. Qe4+ {[%clk 0:00:16]}  Kf7 {[%clk 0:00:02]} 49. Qd5+ {[%clk 0:00:15]}  Kg6 {[%clk 0:00:02]} 50. h4 {[%clk 0:00:16]}  Rf5 {[%clk 0:00:02]} 51. Qe6+ {[%clk 0:00:15]}  Rf6 {[%clk 0:00:02]} 52. Qc8 {[%clk 0:00:14]}  Kh7 {[%clk 0:00:03]} 53. b5 {[%clk 0:00:13]}  Kg6 {[%clk 0:00:03]} 54. bxa6 {[%clk 0:00:13]}  Rf5 {[%clk 0:00:02]} 55. Qxf5+ {[%clk 0:00:13]}  Kxf5 {[%clk 0:00:03]} 56. a7 {[%clk 0:00:14]}  Kg4 {[%clk 0:00:03]} 57. Kxf2 {[%clk 0:00:13]}  Kh3 {[%clk 0:00:03]} 58. a8=Q {[%clk 0:00:12]}  Kh2 {[%clk 0:00:04]} 59. Qg2# {[%clk 0:00:12]} 1-0


[Site "https://www.chess.com"]

[Event "Titled Tuesday Blitz February 22 Early 2022"]
[White "Osmonbekov, Talaibek"]
[Black "Guliev, Logman"]
[WhiteFideId "2017253"]
[BlackFideId "13400061"]
[WhiteElo "2135"]
[BlackElo "2128"]
[Result "1-0"]
[Round "11"]
[TimeControl "180+1"]
[Date "2022.02.22"]
[WhiteClock "0:00:11"]
[BlackClock "0:01:02"]

1. d4 {[%clk 0:03:00]}  d5 {[%clk 0:02:59]} 2. Nc3 {[%clk 0:03:01]}  Nf6 {[%clk 0:02:58]} 3. Bf4 {[%clk 0:03:01]}  c6 {[%clk 0:02:56]} 4. e3 {[%clk 0:03:01]}  Bf5 {[%clk 0:02:56]} 5. f3 {[%clk 0:03:01]}  e6 {[%clk 0:02:56]} 6. g4 {[%clk 0:03:01]}  Bg6 {[%clk 0:02:56]} 7. h4 {[%clk 0:03:02]}  h5 {[%clk 0:02:55]} 8. g5 {[%clk 0:03:03]}  Nfd7 {[%clk 0:02:56]} 9. Bd3 {[%clk 0:03:04]}  Bb4 {[%clk 0:02:54]} 10. Bxg6 {[%clk 0:03:02]}  fxg6 {[%clk 0:02:54]} 11. Qd3 {[%clk 0:03:02]}  Nf8 {[%clk 0:02:48]} 12. Ne2 {[%clk 0:03:01]}  Nbd7 {[%clk 0:02:48]} 13. O-O-O {[%clk 0:02:57]}  Qa5 {[%clk 0:02:47]} 14. a3 {[%clk 0:02:41]}  Be7 {[%clk 0:02:39]} 15. Be5 {[%clk 0:02:33]}  Nxe5 {[%clk 0:02:38]} 16. dxe5 {[%clk 0:02:33]}  c5 {[%clk 0:02:38]} 17. Qb5+ {[%clk 0:02:18]}  Qxb5 {[%clk 0:02:37]} 18. Nxb5 {[%clk 0:02:19]}  Kd7 {[%clk 0:02:36]} 19. c4 {[%clk 0:02:16]}  Kc6 {[%clk 0:02:36]} 20. a4 {[%clk 0:01:41]}  Nd7 {[%clk 0:02:25]} 21. cxd5+ {[%clk 0:01:32]}  exd5 {[%clk 0:02:26]} 22. Nf4 {[%clk 0:01:32]}  Nxe5 {[%clk 0:02:16]} 23. Nxd5 {[%clk 0:01:31]}  Rhe8 {[%clk 0:02:16]} 24. Nbc7 {[%clk 0:01:29]}  Bd6 {[%clk 0:02:14]} 25. Nxa8 {[%clk 0:01:27]}  Rxa8 {[%clk 0:02:11]} 26. f4 {[%clk 0:01:25]}  Ng4 {[%clk 0:02:08]} 27. Rhe1 {[%clk 0:01:21]}  Nf2 {[%clk 0:02:03]} 28. Rd2 {[%clk 0:01:11]}  Ne4 {[%clk 0:02:01]} 29. Rd3 {[%clk 0:01:10]}  Nf2 {[%clk 0:02:01]} 30. Rd2 {[%clk 0:01:06]}  Ne4 {[%clk 0:02:01]} 31. Rd3 {[%clk 0:01:01]}  Re8 {[%clk 0:01:47]} 32. Nc3 {[%clk 0:00:48]}  Nxc3 {[%clk 0:01:44]} 33. bxc3 {[%clk 0:00:48]}  Bxf4 {[%clk 0:01:45]} 34. Kd2 {[%clk 0:00:46]}  Bg3 {[%clk 0:01:42]} 35. Rh1 {[%clk 0:00:45]}  Rf8 {[%clk 0:01:40]} 36. e4 {[%clk 0:00:41]}  Rf2+ {[%clk 0:01:39]} 37. Ke3 {[%clk 0:00:40]}  Ra2 {[%clk 0:01:39]} 38. Rh3 {[%clk 0:00:33]}  Be5 {[%clk 0:01:24]} 39. Rf3 {[%clk 0:00:32]}  c4 {[%clk 0:01:24]} 40. Rd5 {[%clk 0:00:20]}  Bxc3 {[%clk 0:01:23]} 41. Rf7 {[%clk 0:00:20]}  Bb4 {[%clk 0:01:15]} 42. Kd4 {[%clk 0:00:18]}  c3 {[%clk 0:01:15]} 43. Rdd7 {[%clk 0:00:15]}  c2 {[%clk 0:01:11]} 44. Rc7+ {[%clk 0:00:15]}  Kd6 {[%clk 0:01:06]} 45. Rfe7 {[%clk 0:00:11]}  c1=Q {[%clk 0:01:02]} 46. e5# {[%clk 0:00:11]} 1-0


[Site "https://www.chess.com"]

[Event "Titled Tuesday Blitz February 22 Early 2022"]
[White "Papasimakopoulos, Alexandros"]
[Black "Mikhailov, Viacheslav"]
[WhiteFideId "4244125"]
[BlackFideId "4187369"]
[WhiteElo "2340"]
[BlackElo "2381"]
[Result "1-0"]
[Round "11"]
[TimeControl "180+1"]
[Date "2022.02.22"]
[WhiteClock "0:00:20"]
[BlackClock "0:00:04"]

1. d4 {[%clk 0:03:00]}  c5 {[%clk 0:02:56]} 2. d5 {[%clk 0:03:00]}  e5 {[%clk 0:02:56]} 3. e4 {[%clk 0:02:57]}  d6 {[%clk 0:02:57]} 4. Nf3 {[%clk 0:02:57]}  a6 {[%clk 0:02:57]} 5. a4 {[%clk 0:02:57]}  Bg4 {[%clk 0:02:57]} 6. Nc3 {[%clk 0:02:54]}  Be7 {[%clk 0:02:57]} 7. Rg1 {[%clk 0:02:55]}  Nd7 {[%clk 0:02:56]} 8. Be3 {[%clk 0:02:54]}  Qb6 {[%clk 0:02:48]} 9. b3 {[%clk 0:02:51]}  Ngf6 {[%clk 0:02:45]} 10. Qd2 {[%clk 0:02:45]}  Qb4 {[%clk 0:02:41]} 11. h3 {[%clk 0:02:34]}  Bh5 {[%clk 0:02:40]} 12. Bd3 {[%clk 0:02:31]}  O-O {[%clk 0:02:18]} 13. a5 {[%clk 0:02:09]}  b5 {[%clk 0:02:18]} 14. axb6 {[%clk 0:01:58]}  Nxb6 {[%clk 0:02:18]} 15. Ne2 {[%clk 0:01:52]}  Qxd2+ {[%clk 0:01:56]} 16. Nxd2 {[%clk 0:01:50]}  a5 {[%clk 0:01:56]} 17. Bb5 {[%clk 0:01:45]}  Rfb8 {[%clk 0:01:34]} 18. c4 {[%clk 0:01:41]}  Ne8 {[%clk 0:00:58]} 19. Nc3 {[%clk 0:01:40]}  Nc7 {[%clk 0:00:55]} 20. Bc6 {[%clk 0:01:40]}  Ra7 {[%clk 0:00:54]} 21. f3 {[%clk 0:01:31]}  f6 {[%clk 0:00:34]} 22. Ke2 {[%clk 0:01:27]}  Be8 {[%clk 0:00:34]} 23. Nb5 {[%clk 0:01:22]}  Nxb5 {[%clk 0:00:30]} 24. cxb5 {[%clk 0:01:23]}  Kf8 {[%clk 0:00:21]} 25. Ra2 {[%clk 0:01:19]}  Bd8 {[%clk 0:00:20]} 26. Rga1 {[%clk 0:01:19]}  Rba8 {[%clk 0:00:16]} 27. Kd1 {[%clk 0:00:59]}  Rb8 {[%clk 0:00:13]} 28. Kc2 {[%clk 0:00:50]}  Nc8 {[%clk 0:00:06]} 29. b4 {[%clk 0:00:46]}  Bxc6 {[%clk 0:00:04]} 30. bxc6 {[%clk 0:00:23]}  Rxb4 {[%clk 0:00:05]} 31. Nb3 {[%clk 0:00:23]}  a4 {[%clk 0:00:04]} 32. Nxc5 {[%clk 0:00:23]}  dxc5 {[%clk 0:00:03]} 33. Bxc5+ {[%clk 0:00:23]}  Be7 {[%clk 0:00:04]} 34. Bxb4 {[%clk 0:00:18]}  Bxb4 {[%clk 0:00:03]} 35. Rxa4 {[%clk 0:00:19]}  Rxa4 {[%clk 0:00:04]} 36. Rxa4 {[%clk 0:00:20]}  Bd6 {[%clk 0:00:04]} 37. Ra8 {[%clk 0:00:20]} 1-0


[Site "https://www.chess.com"]

[Event "Titled Tuesday Blitz February 22 Early 2022"]
[White "Papp, Levente"]
[Black "Mekhitarian, Krikor Sevag"]
[WhiteFideId "751243"]
[BlackFideId "2107660"]
[WhiteElo "2308"]
[BlackElo "2598"]
[Result "0-1"]
[Round "11"]
[TimeControl "180+1"]
[Date "2022.02.22"]
[WhiteClock "0:00:01"]
[BlackClock "0:00:39"]

1. c4 {[%clk 0:03:00]}  c5 {[%clk 0:02:57]} 2. g3 {[%clk 0:03:00]}  Nc6 {[%clk 0:02:56]} 3. Bg2 {[%clk 0:03:00]}  g6 {[%clk 0:02:57]} 4. Nc3 {[%clk 0:03:01]}  Bg7 {[%clk 0:02:57]} 5. Nf3 {[%clk 0:03:01]}  d6 {[%clk 0:02:58]} 6. O-O {[%clk 0:03:01]}  e5 {[%clk 0:02:59]} 7. Ne1 {[%clk 0:03:01]}  Be6 {[%clk 0:02:58]} 8. d3 {[%clk 0:03:00]}  Nge7 {[%clk 0:02:59]} 9. Nc2 {[%clk 0:03:00]}  d5 {[%clk 0:02:59]} 10. cxd5 {[%clk 0:02:57]}  Nxd5 {[%clk 0:03:00]} 11. Ne3 {[%clk 0:02:36]}  Nde7 {[%clk 0:02:59]} 12. b3 {[%clk 0:02:21]}  e4 {[%clk 0:02:51]} 13. Bb2 {[%clk 0:02:11]}  exd3 {[%clk 0:02:51]} 14. exd3 {[%clk 0:01:49]}  O-O {[%clk 0:02:48]} 15. Qd2 {[%clk 0:01:45]}  b6 {[%clk 0:02:47]} 16. Ne4 {[%clk 0:01:45]}  Nd4 {[%clk 0:02:47]} 17. Rab1 {[%clk 0:01:23]}  h6 {[%clk 0:02:44]} 18. Nc2 {[%clk 0:01:21]}  Nec6 {[%clk 0:02:43]} 19. Nc3 {[%clk 0:01:15]}  Rc8 {[%clk 0:02:26]} 20. Ne2 {[%clk 0:01:12]}  Nxc2 {[%clk 0:02:26]} 21. Qxc2 {[%clk 0:01:12]}  Nb4 {[%clk 0:02:26]} 22. Qd2 {[%clk 0:01:11]}  Qxd3 {[%clk 0:02:25]} 23. Qxd3 {[%clk 0:01:09]}  Nxd3 {[%clk 0:02:25]} 24. Bxg7 {[%clk 0:01:09]}  Kxg7 {[%clk 0:02:26]} 25. Rfd1 {[%clk 0:01:04]}  Rfd8 {[%clk 0:02:25]} 26. Rd2 {[%clk 0:01:00]}  Nb4 {[%clk 0:02:25]} 27. Rbd1 {[%clk 0:00:59]}  Rxd2 {[%clk 0:02:17]} 28. Rxd2 {[%clk 0:01:00]}  Kf6 {[%clk 0:02:16]} 29. Nc3 {[%clk 0:00:58]}  Ke7 {[%clk 0:02:14]} 30. a3 {[%clk 0:00:31]}  Nc6 {[%clk 0:02:13]} 31. Bd5 {[%clk 0:00:29]}  Nd4 {[%clk 0:01:59]} 32. Kg2 {[%clk 0:00:28]}  Nxb3 {[%clk 0:01:51]} 33. Bxb3 {[%clk 0:00:17]}  Bxb3 {[%clk 0:01:52]} 34. Nb5 {[%clk 0:00:11]}  a6 {[%clk 0:01:49]} 35. Nc3 {[%clk 0:00:10]}  b5 {[%clk 0:01:46]} 36. Re2+ {[%clk 0:00:07]}  Be6 {[%clk 0:01:38]} 37. Rb2 {[%clk 0:00:05]}  Rd8 {[%clk 0:01:35]} 38. f3 {[%clk 0:00:04]}  f5 {[%clk 0:01:34]} 39. h4 {[%clk 0:00:03]}  Rd4 {[%clk 0:01:34]} 40. Ne2 {[%clk 0:00:03]}  Ra4 {[%clk 0:01:34]} 41. Nf4 {[%clk 0:00:04]}  Bf7 {[%clk 0:01:02]} 42. Nd3 {[%clk 0:00:03]}  c4 {[%clk 0:00:57]} 43. Nb4 {[%clk 0:00:02]}  Rxa3 {[%clk 0:00:56]} 44. Rd2 {[%clk 0:00:03]}  c3 {[%clk 0:00:51]} 45. Nc6+ {[%clk 0:00:02]}  Kf8 {[%clk 0:00:51]} 46. Rd8+ {[%clk 0:00:03]}  Kg7 {[%clk 0:00:52]} 47. Rc8 {[%clk 0:00:03]}  c2 {[%clk 0:00:48]} 48. Ne5 {[%clk 0:00:03]}  Bc4 {[%clk 0:00:48]} 49. Rc7+ {[%clk 0:00:02]}  Kf6 {[%clk 0:00:44]} 50. Nxc4 {[%clk 0:00:02]}  c1=Q {[%clk 0:00:40]} 51. Rc6+ {[%clk 0:00:02]}  Kg7 {[%clk 0:00:39]} 52. Rc7+ {[%clk 0:00:02]}  Kf8 {[%clk 0:00:39]} 53. Rc8+ {[%clk 0:00:03]}  Ke7 {[%clk 0:00:39]} 54. Rc7+ {[%clk 0:00:01]}  Kd8 {[%clk 0:00:39]} 0-1


[Site "https://www.chess.com"]

[Event "Titled Tuesday Blitz February 22 Early 2022"]
[White "Pavlidou, Ekaterini"]
[Black "Lonoff, Marc"]
[WhiteFideId "4213262"]
[BlackFideId "2001349"]
[WhiteElo "2127"]
[BlackElo "2262"]
[Result "0-1"]
[Round "11"]
[TimeControl "180+1"]
[Date "2022.02.22"]
[WhiteClock "0:01:16"]
[BlackClock "0:01:10"]

1. d4 {[%clk 0:03:00]}  e6 {[%clk 0:02:59]} 2. c4 {[%clk 0:03:00]}  Bb4+ {[%clk 0:02:58]} 3. Bd2 {[%clk 0:02:57]}  Qe7 {[%clk 0:02:58]} 4. e3 {[%clk 0:02:55]}  b6 {[%clk 0:02:47]} 5. Nf3 {[%clk 0:02:53]}  Bxd2+ {[%clk 0:02:42]} 6. Qxd2 {[%clk 0:02:52]}  Bb7 {[%clk 0:02:41]} 7. Be2 {[%clk 0:02:52]}  f5 {[%clk 0:02:40]} 8. Nc3 {[%clk 0:02:52]}  Nf6 {[%clk 0:02:40]} 9. h3 {[%clk 0:02:49]}  O-O {[%clk 0:02:40]} 10. Rg1 {[%clk 0:02:46]}  Ne4 {[%clk 0:02:39]} 11. Qc2 {[%clk 0:02:45]}  Qb4 {[%clk 0:02:37]} 12. Nd2 {[%clk 0:02:40]}  Nxc3 {[%clk 0:02:31]} 13. bxc3 {[%clk 0:02:40]}  Qe7 {[%clk 0:02:25]} 14. g4 {[%clk 0:02:40]}  c5 {[%clk 0:02:21]} 15. d5 {[%clk 0:02:39]}  exd5 {[%clk 0:02:19]} 16. gxf5 {[%clk 0:02:35]}  dxc4 {[%clk 0:02:05]} 17. e4 {[%clk 0:02:35]}  d5 {[%clk 0:02:04]} 18. O-O-O {[%clk 0:02:32]}  Nd7 {[%clk 0:01:54]} 19. exd5 {[%clk 0:02:31]}  Qxe2 {[%clk 0:01:48]} 20. Rde1 {[%clk 0:02:25]}  Qd3 {[%clk 0:01:47]} 21. Qa4 {[%clk 0:02:04]}  Qxc3+ {[%clk 0:01:37]} 22. Kd1 {[%clk 0:01:58]}  Rf7 {[%clk 0:01:35]} 23. Rg3 {[%clk 0:01:37]}  Qa1+ {[%clk 0:01:29]} 24. Ke2 {[%clk 0:01:37]}  Re8+ {[%clk 0:01:26]} 25. Re3 {[%clk 0:01:37]}  Rxe3+ {[%clk 0:01:23]} 26. fxe3 {[%clk 0:01:37]}  Qe5 {[%clk 0:01:14]} 27. Qxc4 {[%clk 0:01:33]}  Bxd5 {[%clk 0:01:12]} 28. Qh4 {[%clk 0:01:33]}  Nf6 {[%clk 0:01:11]} 29. Rf1 {[%clk 0:01:16]}  Re7 {[%clk 0:01:10]} 0-1


[Site "https://www.chess.com"]

[Event "Titled Tuesday Blitz February 22 Early 2022"]
[White "Potapova, Margarita"]
[Black "Yuan, Qingyu"]
[WhiteFideId "14126869"]
[BlackFideId "8609772"]
[WhiteElo "2209"]
[BlackElo "2359"]
[Result "1-0"]
[Round "11"]
[TimeControl "180+1"]
[Date "2022.02.22"]
[WhiteClock "0:00:07"]
[BlackClock "0:00:53"]

1. d4 {[%clk 0:02:47]}  d5 {[%clk 0:02:59]} 2. c4 {[%clk 0:02:48]}  e6 {[%clk 0:03:00]} 3. Nf3 {[%clk 0:02:48]}  Nf6 {[%clk 0:03:00]} 4. Nc3 {[%clk 0:02:47]}  a6 {[%clk 0:03:01]} 5. cxd5 {[%clk 0:02:45]}  exd5 {[%clk 0:03:01]} 6. Bg5 {[%clk 0:02:46]}  Be6 {[%clk 0:03:01]} 7. Bxf6 {[%clk 0:02:39]}  Qxf6 {[%clk 0:03:01]} 8. Qb3 {[%clk 0:02:40]}  Ra7 {[%clk 0:02:58]} 9. g3 {[%clk 0:02:39]}  Qd8 {[%clk 0:02:57]} 10. h4 {[%clk 0:02:39]}  h6 {[%clk 0:02:53]} 11. O-O-O {[%clk 0:02:19]}  Nd7 {[%clk 0:02:48]} 12. Ne5 {[%clk 0:01:52]}  Bd6 {[%clk 0:02:37]} 13. Nxd5 {[%clk 0:01:43]}  c6 {[%clk 0:02:27]} 14. Nc4 {[%clk 0:01:13]}  Bb8 {[%clk 0:02:06]} 15. Nf4 {[%clk 0:01:10]}  Bxf4+ {[%clk 0:02:05]} 16. gxf4 {[%clk 0:01:10]}  b5 {[%clk 0:02:04]} 17. Nd6+ {[%clk 0:01:10]}  Kf8 {[%clk 0:01:58]} 18. Qa3 {[%clk 0:01:11]}  Qe7 {[%clk 0:01:56]} 19. e4 {[%clk 0:00:56]}  a5 {[%clk 0:01:48]} 20. f5 {[%clk 0:00:46]}  b4 {[%clk 0:01:44]} 21. Qg3 {[%clk 0:00:45]}  Bxa2 {[%clk 0:01:31]} 22. Nc8 {[%clk 0:00:43]}  Qxe4 {[%clk 0:01:32]} 23. Bd3 {[%clk 0:00:38]}  Qxd4 {[%clk 0:01:27]} 24. Bc2 {[%clk 0:00:27]}  Qc4 {[%clk 0:01:12]} 25. Qd6+ {[%clk 0:00:23]}  Kg8 {[%clk 0:01:11]} 26. Ne7+ {[%clk 0:00:16]}  Kf8 {[%clk 0:01:06]} 27. Ng6+ {[%clk 0:00:15]}  Kg8 {[%clk 0:01:05]} 28. Ne7+ {[%clk 0:00:14]}  Kf8 {[%clk 0:01:05]} 29. Nxc6+ {[%clk 0:00:12]}  Kg8 {[%clk 0:01:04]} 30. Ne7+ {[%clk 0:00:12]}  Kf8 {[%clk 0:01:04]} 31. Nc6+ {[%clk 0:00:10]}  Kg8 {[%clk 0:01:04]} 32. Ne7+ {[%clk 0:00:06]}  Kf8 {[%clk 0:01:04]} 33. Ng6+ {[%clk 0:00:07]}  Kg8 {[%clk 0:01:05]} 34. Qb8+ {[%clk 0:00:07]}  Nxb8 {[%clk 0:00:53]} 35. Rd8+ {[%clk 0:00:07]} 1-0


[Site "https://www.chess.com"]

[Event "Titled Tuesday Blitz February 22 Early 2022"]
[White "Redzisz, Michal"]
[Black "Barbashin, Igor"]
[WhiteFideId "21816107"]
[BlackFideId "4155718"]
[WhiteElo "1961"]
[BlackElo "2138"]
[Result "0-1"]
[Round "11"]
[TimeControl "180+1"]
[Date "2022.02.22"]
[WhiteClock "0:00:03"]
[BlackClock "0:00:42"]

1. d4 {[%clk 0:03:00]}  Nf6 {[%clk 0:02:59]} 2. Nf3 {[%clk 0:03:00]}  c5 {[%clk 0:02:59]} 3. d5 {[%clk 0:02:58]}  e6 {[%clk 0:02:59]} 4. Nc3 {[%clk 0:02:55]}  exd5 {[%clk 0:02:58]} 5. Nxd5 {[%clk 0:02:56]}  Nxd5 {[%clk 0:02:58]} 6. Qxd5 {[%clk 0:02:57]}  d6 {[%clk 0:02:56]} 7. e4 {[%clk 0:02:55]}  Nc6 {[%clk 0:02:56]} 8. c3 {[%clk 0:02:53]}  Be6 {[%clk 0:02:56]} 9. Qd1 {[%clk 0:02:50]}  Qb6 {[%clk 0:02:52]} 10. Be2 {[%clk 0:02:48]}  O-O-O {[%clk 0:02:51]} 11. O-O {[%clk 0:02:48]}  d5 {[%clk 0:02:49]} 12. exd5 {[%clk 0:02:46]}  Bxd5 {[%clk 0:02:46]} 13. Qc2 {[%clk 0:02:45]}  Bd6 {[%clk 0:02:38]} 14. Be3 {[%clk 0:02:37]}  Qc7 {[%clk 0:02:30]} 15. Rfd1 {[%clk 0:02:17]}  Be6 {[%clk 0:02:19]} 16. a3 {[%clk 0:01:29]}  h6 {[%clk 0:02:18]} 17. b4 {[%clk 0:01:08]}  c4 {[%clk 0:02:18]} 18. b5 {[%clk 0:01:07]}  Ne5 {[%clk 0:02:14]} 19. Nxe5 {[%clk 0:01:03]}  Bxe5 {[%clk 0:02:13]} 20. b6 {[%clk 0:00:53]}  axb6 {[%clk 0:02:11]} 21. Rdb1 {[%clk 0:00:51]}  Rd6 {[%clk 0:02:05]} 22. a4 {[%clk 0:00:48]}  Rhd8 {[%clk 0:01:43]} 23. Rb5 {[%clk 0:00:32]}  Rc6 {[%clk 0:01:38]} 24. a5 {[%clk 0:00:20]}  bxa5 {[%clk 0:01:35]} 25. Rbxa5 {[%clk 0:00:21]}  Bxh2+ {[%clk 0:01:29]} 26. Kf1 {[%clk 0:00:21]}  Bd6 {[%clk 0:01:28]} 27. Bf3 {[%clk 0:00:21]}  Kd7 {[%clk 0:01:13]} 28. Bxc6+ {[%clk 0:00:15]}  Qxc6 {[%clk 0:01:13]} 29. Ra8 {[%clk 0:00:14]}  Rxa8 {[%clk 0:01:07]} 30. Rxa8 {[%clk 0:00:15]}  Ke7 {[%clk 0:01:06]} 31. Bd4 {[%clk 0:00:09]}  Qd5 {[%clk 0:00:58]} 32. Ra1 {[%clk 0:00:03]}  Bf5 {[%clk 0:00:54]} 33. Re1+ {[%clk 0:00:03]}  Kf8 {[%clk 0:00:49]} 34. Qa2 {[%clk 0:00:03]}  Kg8 {[%clk 0:00:47]} 35. Qa8+ {[%clk 0:00:03]}  Kh7 {[%clk 0:00:47]} 36. Qd8 {[%clk 0:00:03]}  Bd3+ {[%clk 0:00:44]} 37. Kg1 {[%clk 0:00:03]}  Bh2+ {[%clk 0:00:43]} 38. Kxh2 {[%clk 0:00:03]}  Qxd8 {[%clk 0:00:42]} 0-1


[Site "https://www.chess.com"]